bitfinex/quotes_ETHUSD_20250616
["timestamp","ask_amount","ask_price","bid_price","bid_amount"]
[1750052258507,0.7886,2622.4,2621.5,14.2308005]
[1750052258703,0.03812953,2622.3,2621.2,5.4424005]
[1750052258944,0.03812953,2622.3,2621.0,3.81524846]
[1750052258945,0.03812953,2622.3,2621.3,8.52724005]
[1750052259111,0.03812953,2622.3,2621.3,0.54424005]
[1750052259308,0.03812953,2622.3,2621.0,0.7974]
[1750052259508,0.03812953,2622.3,2621.1,7.983]
[1750052259704,0.03812953,2622.3,2621.2,7.983]
[1750052259908,0.03812953,2622.3,2621.0,0.7974]
[1750052260223,0.03812953,2622.3,2621.1,7.983]
[1750052260420,0.03812953,2622.3,2621.2,0.87804]
[1750052260823,0.7597,2622.2,2621.0,7.983]
[1750052261143,0.03812953,2622.1,2621.1,0.03814624]
[1750052261743,0.7535,2622.0,2620.7,7.983]
[1750052261959,0.03812953,2621.9,2620.8,0.0381477]
[1750052262625,0.7886,2621.8,2620.8,0.0381477]
[1750052262837,2.77112953,2621.7,2620.5,3.81605115]
[1750052263142,0.03812953,2621.7,2620.6,5.86215536]
[1750052263335,2.733,2621.6,2620.6,5.86215536]
[1750052264510,0.03812953,2621.5,2620.6,0.38160512]
[1750052264846,0.7732,2621.4,2620.6,0.38160512]
[1750052265155,0.03812953,2621.3,2620.6,0.38160512]
[1750052265349,0.03812953,2621.3,2620.3,7.982]
[1750052265849,0.03812953,2621.3,2619.8,5.40503472]
[1750052266050,0.8104,2621.2,2619.8,0.7989]
[1750052266363,0.8104,2621.0,2619.3,11.79979393]
[1750052266653,0.8104,2620.8,2619.3,11.79979393]
[1750052266821,0.8104,2620.8,2619.4,7.981]
[1750052266822,2.76312953,2620.7,2619.4,7.981]
[1750052267023,0.03812953,2620.7,2619.5,0.03816568]
[1750052267228,0.03812953,2620.7,2619.6,5.4424005]
[1750052267451,2.725,2620.6,2619.7,0.54805662]
[1750052267664,3.5354,2620.8,2619.8,0.03816378]
[1750052267826,3.5354,2620.8,2619.7,0.54805662]
[1750052268030,0.03812953,2620.7,2619.7,0.54805662]
[1750052268571,0.22852953,2620.7,2620.2,0.1904]
[1750052268769,2.726,2620.6,2620.2,0.1904]
[1750052269831,0.03812953,2620.5,2620.2,0.1904]
[1750052270125,0.8163,2620.4,2620.2,0.1904]
[1750052270574,0.03812953,2620.3,2620.2,0.1904]
[1750052270796,0.7673,2620.1,2618.3,0.8071]
[1750052270971,0.7673,2619.9,2618.3,1.12592618]
[1750052271184,0.7673,2619.7,2618.4,0.03818164]
[1750052271464,2.76412953,2619.6,2618.4,4.35557413]
[1750052271674,0.03812953,2619.6,2618.4,0.53651777]
[1750052271835,0.7673,2619.7,2618.4,0.53651777]
[1750052272039,0.80542953,2619.7,2618.5,3.81890488]
[1750052272258,0.80542953,2619.7,2618.6,0.03817659]
[1750052272431,2.726,2619.6,2618.6,4.29254107]
[1750052273558,0.7673,2619.7,2618.6,0.47371847]
[1750052273769,0.7673,2619.7,2618.7,5.4424005]
[1750052273936,0.03812953,2619.6,2618.7,3.81863632]
[1750052274270,0.03812953,2619.6,2618.8,0.03817579]
[1750052274471,0.03812953,2619.6,2618.4,4.31735188]
[1750052274472,0.03812953,2619.6,2618.4,0.49833613]
[1750052274676,0.7545,2619.5,2617.9,0.8031]
[1750052274837,5.4424005,2619.2,2617.4,0.7784]
[1750052275036,0.8199,2619.0,2617.4,0.7784]
[1750052275336,0.8199,2618.8,2617.4,3.8204869]
[1750052275539,0.8199,2618.8,2617.7,5.4424005]
[1750052275906,0.8199,2618.8,2617.5,0.03819483]
[1750052275907,0.8199,2618.8,2618.1,5.4424005]
[1750052276053,0.8199,2618.8,2618.5,3.81886501]
[1750052276248,0.8199,2619.3,2618.7,3.81868557]
[1750052276448,0.8199,2619.3,2618.8,0.03818046]
[1750052276852,0.8199,2619.3,2618.8,3.85669781]
[1750052277067,0.8199,2619.3,2618.8,0.42385024]
[1750052277608,0.8199,2619.3,2618.8,0.03818046]
[1750052277814,0.8199,2619.3,2618.7,3.81861103]
[1750052278026,0.8199,2619.3,2618.8,0.03817794]
[1750052278435,0.8199,2619.3,2618.6,3.81881498]
[1750052278721,0.8199,2619.3,2618.7,3.8567753]
[1750052279017,0.8199,2619.3,2618.8,3.81852678]
[1750052279226,0.8199,2619.3,2618.9,0.03817873]
[1750052279401,0.8199,2619.3,2618.5,3.81889883]
[1750052279600,0.8199,2619.3,2618.4,7.981]
[1750052279907,0.03812953,2619.2,2618.5,0.03818125]
[1750052280108,0.03812953,2619.2,2618.9,0.1904]
[1750052281010,0.7866,2619.1,2617.8,0.54424005]
[1750052281216,0.7866,2618.7,2618.3,0.1904]
[1750052281416,0.03812953,2618.6,2618.3,0.1904]
[1750052281612,0.03812953,2618.6,2617.3,9.26311298]
[1750052281790,0.1904,2618.5,2618.1,0.1904]
[1750052281993,0.799,2618.2,2617.9,0.1904]
[1750052282191,2.76612953,2618.1,2616.8,6.2686005]
[1750052282391,2.95652953,2618.1,2617.6,0.1904]
[1750052282610,0.799,2618.0,2617.6,0.1904]
[1750052282786,0.1904,2617.6,2617.2,0.1904]
[1750052282982,0.7694,2617.4,2617.2,0.1904]
[1750052283178,2.728,2617.3,2617.2,0.1904]
[1750052284903,0.7694,2617.4,2617.2,0.1904]
[1750052285116,2.728,2617.3,2617.2,0.1904]
[1750052285320,0.7694,2617.4,2616.5,3.821797]
[1750052285627,2.728,2617.3,2617.0,0.1904]
[1750052285850,0.03812953,2617.2,2617.0,0.1904]
[1750052286020,0.03812953,2617.2,2616.3,3.82219164]
[1750052286330,0.22852953,2617.2,2616.7,0.1904]
[1750052287129,0.8225,2617.1,2616.4,0.03821568]
[1750052287333,0.03812953,2617.0,2616.6,0.1904]
[1750052287503,0.8225,2617.1,2617.0,0.1904]
[1750052287688,1.0129,2617.1,2616.7,0.1904]
[1750052287893,0.03812953,2617.0,2616.7,0.1904]
[1750052288093,0.03812953,2617.0,2615.9,3.82276892]
[1750052288356,0.22852953,2617.0,2616.5,0.1904]
[1750052288837,2.729,2616.9,2616.5,0.1904]
[1750052289193,0.16197862,2617.0,2616.5,4.01219145]
[1750052289422,2.729,2617.0,2616.3,3.82209606]
[1750052289622,2.729,2617.0,2616.7,0.1904]
[1750052289838,1.0129,2617.1,2616.7,0.1904]
[1750052290055,2.729,2617.0,2616.7,0.1904]
[1750052290327,1.0129,2617.1,2616.7,0.1904]
[1750052290537,0.8225,2617.1,2616.8,0.03821215]
[1750052290740,2.729,2617.3,2617.0,0.1904]
[1750052290894,0.8136,2617.5,2617.0,0.1904]
[1750052291094,0.8136,2617.5,2616.4,1.34694993]
[1750052291095,0.03812953,2617.4,2617.2,0.1904]
[1750052291291,0.03812953,2617.4,2616.5,3.82188345]
[1750052291540,0.22852953,2617.4,2616.9,0.1904]
[1750052291836,0.03812953,2617.3,2616.9,0.1904]
[1750052292341,0.1904,2617.4,2616.9,0.1904]
[1750052292703,11.012,2617.6,2617.0,0.03821009]
[1750052292939,11.012,2617.6,2617.0,3.82109581]
[1750052293140,11.012,2617.6,2616.9,0.97373848]
[1750052293341,0.03812953,2617.5,2616.9,0.1904]
[1750052293638,0.7528,2617.4,2616.9,0.1904]
[1750052293824,0.03812953,2617.3,2616.6,3.82173522]
[1750052294426,0.03812953,2617.3,2616.8,3.82145742]
[1750052294645,0.7528,2617.4,2616.9,0.0382071]
[1750052294956,0.7528,2617.4,2616.4,5.4424005]
[1750052294957,0.7528,2617.4,2616.8,3.82145488]
[1750052295322,0.7528,2617.4,2616.9,3.82117427]
[1750052295837,0.7528,2617.4,2617.0,3.85923108]
[1750052296049,2.717,2618.3,2617.2,3.82080287]
[1750052296246,0.7685,2618.1,2616.8,8.73930554]
[1750052296431,0.03812953,2618.0,2616.9,3.82118329]
[1750052296634,0.03812953,2618.0,2617.0,5.07707911]
[1750052296832,0.03812953,2618.0,2617.1,3.82099332]
[1750052297029,0.03812953,2618.0,2617.1,3.85913259]
[1750052297264,2.717,2617.9,2617.3,3.82071866]
[1750052297464,3.4855,2618.1,2617.5,3.82030634]
[1750052297627,0.7685,2618.1,2617.6,0.03819722]
[1750052297962,0.7685,2618.1,2617.6,3.85841619]
[1750052298131,0.7685,2618.1,2617.6,3.82021897]
[1750052298335,0.7685,2618.1,2617.6,0.03819723]
[1750052298538,0.7685,2618.1,2617.8,3.81991844]
[1750052298923,2.717,2618.3,2617.7,3.82008349]
[1750052299261,0.7884,2618.4,2617.8,0.03819523]
[1750052299572,0.82652953,2618.4,2617.8,0.03819523]
[1750052300066,0.82652953,2618.4,2617.5,3.82042211]
[1750052300248,1.18088248,2618.4,2617.0,2.03664888]
[1750052300452,1.18088248,2618.4,2617.3,3.82064299]
[1750052301161,1.18088248,2618.4,2617.4,0.038201]
[1750052301457,2.717,2618.3,2617.4,0.038201]
[1750052301663,0.03812953,2618.2,2617.4,0.038201]
[1750052302261,0.03812953,2618.2,2617.2,3.82080882]
[1750052302462,0.03812953,2618.2,2617.3,7.97]
[1750052302764,0.7586,2618.0,2617.7,0.1904]
[1750052302966,0.3941681,2617.9,2617.5,0.1904]
[1750052303128,0.35603857,2617.8,2617.5,0.1904]
[1750052303469,0.03812953,2617.7,2616.7,0.8286]
[1750052303635,1.30507536,2617.6,2617.1,0.1904]
[1750052303839,0.03812953,2617.5,2617.1,0.1904]
[1750052304043,0.35609938,2617.4,2616.2,0.8286]
[1750052304337,1.18292364,2617.3,2616.5,7.969]
[1750052304532,0.8268,2617.3,2616.8,3.82135914]
[1750052304732,0.8268,2617.3,2617.2,0.1904]
[1750052305823,0.9781,2617.7,2617.2,0.1904]
[1750052306027,0.7877,2617.7,2617.2,4.01125242]
[1750052306259,0.7877,2617.7,2617.5,0.1904]
[1750052306869,2.717,2618.0,2617.6,0.1904]
[1750052307070,2.75512953,2618.0,2617.6,0.1904]
[1750052307271,3.11114761,2618.0,2617.6,0.1904]
[1750052307567,2.75512953,2618.0,2617.6,0.1904]
[1750052308470,0.41145248,2618.0,2617.0,3.8210625]
[1750052308670,0.41145248,2618.0,2617.3,0.1904]
[1750052308671,3.5047,2617.9,2617.3,0.1904]
[1750052308844,0.39419803,2617.8,2617.3,0.1904]
[1750052309041,0.03812953,2617.8,2617.3,0.1904]
[1750052309860,0.22852953,2617.8,2617.3,0.1904]
[1750052310048,0.35685196,2617.7,2617.3,0.1904]
[1750052310249,0.03812953,2617.6,2617.3,0.1904]
[1750052310446,0.3568468,2617.5,2616.7,3.82153132]
[1750052310647,0.3568468,2617.5,2616.1,1.8887468]
[1750052310648,0.03812953,2617.4,2616.1,1.8887468]
[1750052310894,0.7509,2617.3,2616.2,11.82343661]
[1750052311066,0.03812953,2617.2,2616.2,11.78521889]
[1750052311230,2.717,2617.1,2616.3,3.86034154]
[1750052311435,0.39506614,2617.0,2616.3,3.8603805]
[1750052311632,0.35693436,2616.9,2616.4,1.18233805]
[1750052311851,0.39492099,2616.8,2616.0,3.82255356]
[1750052312071,0.35680305,2616.7,2616.3,7.962]
[1750052312274,0.35680305,2616.7,2616.2,11.7843351]
[1750052312275,0.3568049,2616.7,2616.2,11.7843351]
[1750052312456,0.03812953,2617.0,2616.3,0.03821729]
[1750052312856,0.35680025,2616.9,2616.3,0.03821729]
[1750052313170,0.03812953,2617.0,2616.3,5.04265538]
[1750052313468,0.35678599,2616.9,2616.4,3.82191965]
[1750052313671,2.717,2617.1,2616.3,5.00439569]
[1750052313844,0.35678133,2617.0,2616.3,5.00439569]
[1750052314168,0.03812953,2617.0,2616.4,3.82201618]
[1750052314346,0.35677431,2616.9,2616.4,5.50087623]
[1750052314558,0.03812953,2617.0,2616.5,0.03821379]
[1750052314758,0.8005,2617.6,2616.7,5.4424005]
[1750052315088,0.83862953,2617.6,2617.0,3.82108729]
[1750052315286,0.8005,2617.6,2617.1,3.82093732]
[1750052315436,0.8005,2617.6,2617.1,3.85914307]
[1750052315641,0.8005,2618.2,2617.2,3.82076232]
[1750052315942,0.03812953,2618.1,2617.3,11.7796833]
[1750052316162,0.03812953,2618.1,2617.3,7.959]
[1750052316480,0.03812953,2618.1,2617.3,12.52592985]
[1750052316854,0.03812953,2618.1,2617.3,8.70525998]
[1750052317051,0.03812953,2618.1,2617.3,0.74625998]
[1750052317269,0.03812953,2618.1,2617.4,7.957]
[1750052317867,0.03812953,2618.1,2617.4,11.77751213]
[1750052318079,0.03812953,2618.1,2617.4,7.957]
[1750052318655,0.03812953,2618.1,2617.3,3.82068215]
[1750052318977,0.03812953,2618.1,2617.4,7.957]
[1750052319381,0.39369248,2618.1,2616.7,6.5507473]
[1750052319583,0.03812953,2618.1,2617.4,3.82045824]
[1750052319751,0.03812953,2618.1,2617.5,7.955]
[1750052319954,0.03812953,2618.1,2617.3,3.82070158]
[1750052320348,0.03812953,2618.1,2617.4,11.77456897]
[1750052320570,0.03812953,2618.1,2617.4,3.82056897]
[1750052320762,0.22852953,2618.1,2617.6,0.1904]
[1750052320962,0.22852953,2618.1,2617.6,8.1434]
[1750052321170,0.22852953,2618.1,2617.6,0.1904]
[1750052321495,0.60313248,2618.1,2617.6,0.1904]
[1750052321649,0.22852953,2618.1,2617.6,0.1904]
[1750052324855,0.8247,2618.0,2616.7,1.1083468]
[1750052325088,0.1904,2617.7,2617.2,0.1904]
[1750052327770,0.1904,2617.7,2617.6,3.82029339]
[1750052327963,0.8268,2618.6,2617.6,13.3874005]
[1750052328163,0.8268,2618.6,2618.0,3.8196202]
[1750052328496,0.8268,2618.6,2618.1,3.85767582]
[1750052328698,0.8268,2618.6,2618.1,7.98219011]
[1750052328905,0.8268,2618.6,2618.2,3.85759954]
[1750052329060,0.8298,2619.0,2618.4,3.81901373]
[1750052329262,0.8298,2619.0,2618.5,0.03818519]
[1750052329786,0.8298,2619.0,2618.3,3.81922102]
[1750052330107,0.8298,2619.0,2618.2,0.97158425]
[1750052330394,0.03812953,2618.9,2618.2,3.8575466]
[1750052330603,0.03812953,2618.9,2618.2,11.76135794]
[1750052330785,0.03812953,2618.9,2618.2,13.32327962]
[1750052331305,0.03812953,2618.9,2618.2,9.50392168]
[1750052331462,0.03812953,2618.9,2618.2,13.3233197]
[1750052331663,0.03812953,2618.9,2618.3,7.941]
[1750052332570,0.03812953,2618.9,2618.3,11.76025984]
[1750052332798,0.8298,2619.0,2618.3,11.76025984]
[1750052332799,0.8298,2619.0,2618.3,1.08852262]
[1750052332968,0.03812953,2618.9,2617.8,4.5775687]
[1750052333181,0.03812953,2618.9,2618.0,3.81964308]
[1750052333566,0.03812953,2618.9,2618.1,7.938]
[1750052333887,0.03812953,2618.9,2618.0,3.81969937]
[1750052334065,2.73412953,2618.9,2618.1,7.936]
[1750052334265,3.12824888,2618.9,2618.2,7.936]
[1750052334666,0.7669,2618.8,2617.5,4.62487305]
[1750052334867,0.03812953,2618.7,2617.6,11.79447831]
[1750052335070,0.03812953,2618.7,2617.6,3.82028232]
[1750052335312,0.7846,2618.6,2617.7,7.935]
[1750052335476,0.03812953,2618.5,2617.7,9.19097823]
[1750052335802,0.03812953,2618.5,2617.8,7.935]
[1750052336512,0.03812953,2618.5,2617.9,3.81974575]
[1750052336667,0.03812953,2618.5,2617.8,7.935]
[1750052337066,0.03812953,2618.5,2617.7,1.25597823]
[1750052337299,0.03812953,2618.5,2617.8,7.933]
[1750052337487,0.03812953,2618.5,2617.9,7.932]
[1750052337882,0.22852953,2618.5,2618.1,0.1904]
[1750052338078,0.1904,2618.5,2618.0,0.03819521]
[1750052338265,0.03812953,2618.4,2617.9,7.932]
[1750052338473,0.03812953,2618.4,2618.0,0.1904]
[1750052340466,2.696,2618.8,2618.4,3.81902442]
[1750052340670,2.696,2618.8,2618.4,3.85726979]
[1750052340869,2.696,2618.8,2618.7,0.1904]
[1750052341511,0.37726395,2619.0,2618.7,0.1904]
[1750052341729,0.1904,2618.8,2618.1,7.928]
[1750052342019,0.03812953,2618.7,2618.3,0.1904]
[1750052345004,0.03812953,2618.9,2618.3,1.00555915]
[1750052345208,0.8095,2618.8,2618.3,0.1904]
[1750052345396,0.03812953,2618.7,2618.3,0.1904]
[1750052345987,0.03812953,2618.7,2617.9,11.74178058]
[1750052345988,0.03812953,2618.7,2617.9,7.922]
[1750052346223,0.03812953,2618.7,2618.0,0.03819378]
[1750052346424,0.03812953,2618.7,2617.8,5.4424005]
[1750052346425,0.03812953,2618.7,2617.8,3.81993006]
[1750052346739,0.03812953,2618.7,2617.9,0.38199301]
[1750052346903,0.03812953,2618.7,2617.9,8.30299301]
[1750052347426,0.03812953,2618.7,2617.9,4.20179194]
[1750052347583,0.03812953,2618.7,2618.0,7.92]
[1750052348448,0.03812953,2618.7,2618.0,11.73970592]
[1750052348621,0.03812953,2618.7,2618.0,7.92]
[1750052348984,0.03812953,2618.7,2617.9,4.20178794]
[1750052349327,0.03812953,2618.7,2617.9,0.38199301]
[1750052349538,0.39249248,2618.7,2617.6,0.7847]
[1750052349821,0.39249248,2618.7,2618.0,7.917]
[1750052349992,0.03812953,2618.7,2618.0,7.917]
[1750052350194,0.03812953,2618.7,2618.1,3.81947047]
[1750052350418,0.8095,2618.8,2618.2,3.85759138]
[1750052350624,0.8095,2618.8,2618.3,3.81923276]
[1750052351095,0.03812953,2618.7,2618.0,11.73664985]
[1750052351283,0.03812953,2618.7,2618.1,7.915]
[1750052351484,0.03812953,2618.7,2618.2,7.915]
[1750052351881,0.03812953,2618.7,2618.0,5.91953347]
[1750052351882,0.03812953,2618.7,2618.0,2.0999004]
[1750052352239,0.03812953,2618.7,2618.1,7.914]
[1750052352446,0.03812953,2618.7,2618.1,7.913]
[1750052352643,0.7734,2618.6,2617.2,0.7505]
[1750052352801,0.03812953,2618.5,2617.4,3.82058531]
[1750052353006,0.03812953,2618.5,2617.5,3.82032709]
[1750052353243,0.03812953,2618.5,2617.6,3.82027818]
[1750052353543,0.03812953,2618.5,2617.6,0.03819801]
[1750052353858,0.03812953,2618.5,2617.5,2.29592011]
[1750052354164,0.03812953,2618.5,2617.6,7.911]
[1750052354643,0.7851,2618.4,2617.2,4.57129804]
[1750052354827,0.1904,2618.0,2617.5,0.1904]
[1750052355020,0.03812953,2617.9,2617.5,0.1904]
[1750052356145,0.7559,2617.8,2616.9,3.82123902]
[1750052356449,0.03812953,2617.7,2617.0,0.4623839]
[1750052356634,0.22852953,2617.7,2617.2,0.1904]
[1750052357035,0.7988,2617.6,2616.5,0.7502]
[1750052357258,0.1904,2617.2,2616.7,0.1904]
[1750052357824,0.83692953,2617.1,2616.1,0.7972]
[1750052358026,0.1904,2617.0,2616.5,0.1904]
[1750052358226,0.03812953,2616.9,2616.5,0.1904]
[1750052360136,0.7988,2617.1,2616.4,5.4609632]
[1750052360320,0.7988,2617.1,2616.8,0.1904]
[1750052360520,0.7988,2617.1,2617.0,0.1904]
[1750052360820,0.7988,2617.1,2616.6,11.72568575]
[1750052361028,0.7988,2617.1,2616.8,0.1904]
[1750052361722,0.7988,2617.1,2616.6,11.72572793]
[1750052361940,0.7988,2617.1,2617.0,0.1904]
[1750052362220,0.9862,2617.5,2617.1,3.82093001]
[1750052362444,0.7958,2617.5,2617.1,3.85913709]
[1750052362656,0.7958,2618.0,2617.4,0.1904]
[1750052362856,0.03812953,2617.9,2617.4,0.1904]
[1750052363562,1.20017329,2618.3,2617.8,0.1904]
[1750052363760,0.81732953,2618.3,2617.8,0.1904]
[1750052363927,0.81732953,2618.3,2617.2,3.82074045]
[1750052364127,0.53933295,2618.2,2617.7,0.1904]
[1750052364329,0.03812953,2618.1,2617.7,0.1904]
[1750052364532,0.03812953,2618.1,2617.3,7.899]
[1750052364863,0.1904,2617.9,2617.4,0.1904]
[1750052365422,0.7792,2617.8,2617.4,0.1904]
[1750052365628,0.03812953,2617.7,2616.9,7.898]
[1750052365984,0.7792,2617.8,2617.1,3.82098018]
[1750052366139,0.7792,2617.8,2617.5,0.1904]
[1750052366320,2.672,2617.9,2617.7,0.1904]
[1750052367677,2.672,2617.9,2616.9,1.17195977]
[1750052367678,0.03812953,2617.8,2616.9,1.97275977]
[1750052367835,0.1904,2617.7,2617.3,0.1904]
[1750052368174,0.03812953,2617.6,2617.3,0.1904]
[1750052368879,0.8166,2617.5,2617.3,0.1904]
[1750052369079,0.03812953,2617.4,2617.0,0.1904]
[1750052369263,0.03812953,2617.4,2616.7,11.71449191]
[1750052369467,0.22852953,2617.4,2616.9,0.1904]
[1750052369846,0.22852953,2617.4,2616.4,7.892]
[1750052370172,0.8171,2617.3,2616.4,0.7892]
[1750052370386,0.03812953,2617.2,2616.5,3.82178696]
[1750052370551,0.03812953,2617.2,2616.4,3.82204555]
[1750052370753,0.03812953,2617.2,2616.5,3.86004801]
[1750052370952,0.03812953,2617.2,2616.6,3.82162238]
[1750052372075,0.03812953,2617.2,2616.6,7.891]
[1750052372261,0.85522953,2617.3,2616.7,4.61070736]
[1750052372604,0.85522953,2617.3,2617.0,3.82108061]
[1750052372743,2.672,2617.6,2617.1,0.03820923]
[1750052373143,2.672,2617.6,2617.1,11.70901844]
[1750052373772,2.672,2617.6,2617.1,7.887]
[1750052373967,0.03812953,2617.5,2616.8,3.82138005]
[1750052374282,0.03812953,2617.5,2616.9,7.886]
[1750052374446,0.03812953,2617.5,2617.0,3.82108897]
[1750052374884,2.672,2617.6,2617.1,0.03820897]
[1750052375182,0.03812953,2617.5,2617.1,7.885]
[1750052375403,2.672,2617.6,2617.1,7.885]
[1750052375552,2.672,2617.6,2617.1,11.70602138]
[1750052375749,2.672,2617.6,2617.1,7.885]
[1750052375950,2.672,2617.6,2616.8,0.92280834]
[1750052375951,0.03812953,2617.5,2616.8,0.92280834]
[1750052376145,0.03812953,2617.5,2616.4,0.7688]
[1750052376360,0.03812953,2617.5,2616.5,7.92120905]
[1750052376567,0.03812953,2617.5,2616.9,3.82121314]
[1750052377287,0.03812953,2617.5,2616.8,3.85960429]
[1750052377582,0.03812953,2617.5,2616.9,11.70424152]
[1750052377749,0.03812953,2617.5,2617.0,3.82109227]
[1750052378350,0.03812953,2617.5,2617.0,11.70207551]
[1750052378552,0.03812953,2617.5,2617.0,7.881]
[1750052378965,0.03812953,2617.5,2617.1,3.82100082]
[1750052379194,0.03812953,2617.5,2617.0,11.70209462]
[1750052379498,0.03812953,2617.5,2617.0,3.82116427]
[1750052379697,0.03812953,2617.5,2617.0,11.70116427]
[1750052379865,0.03812953,2617.5,2617.1,0.1904]
[1750052380391,0.03812953,2617.5,2617.1,5.00992362]
[1750052380554,0.7849,2617.7,2617.2,0.1904]
[1750052380555,0.03812953,2617.6,2617.2,0.1904]
[1750052380887,0.03812953,2617.6,2617.2,8.0674]
[1750052381179,0.03812953,2617.6,2617.2,0.1904]
[1750052381382,0.03812953,2617.6,2617.2,11.88722136]
[1750052381690,0.03812953,2617.6,2617.2,8.0664]
[1750052381987,0.45859171,2617.9,2617.5,0.1904]
[1750052382379,0.45859171,2617.9,2617.3,7.875]
[1750052382735,0.45859171,2617.9,2617.3,0.1904]
[1750052382736,1.0177,2617.8,2617.3,0.1904]
[1750052382873,1.0177,2617.8,2616.7,3.82157083]
[1750052382874,0.03812953,2617.7,2616.7,3.82157083]
[1750052383194,0.8273,2617.5,2616.7,1.12300228]
[1750052383375,0.22852953,2617.4,2616.9,0.1904]
[1750052385820,0.22852953,2617.4,2616.9,4.01170822]
[1750052386047,0.86542953,2617.5,2616.8,7.44666412]
[1750052386192,0.8273,2617.5,2617.1,0.1904]
[1750052386383,0.86542953,2617.5,2617.1,0.1904]
[1750052387415,0.86542953,2617.5,2617.1,4.01140954]
[1750052387794,0.86542953,2617.5,2617.1,0.1904]
[1750052388596,0.86542953,2617.5,2617.1,4.0113997]
[1750052388791,0.86542953,2617.5,2617.1,0.1904]
[1750052391138,0.8273,2617.5,2617.0,11.68516894]
[1750052391336,0.8273,2617.5,2617.2,0.1904]
[1750052391503,2.643,2617.6,2617.2,0.1904]
[1750052391833,2.643,2617.6,2617.3,3.85879845]
[1750052392037,2.643,2617.6,2617.5,0.1904]
[1750052393504,2.643,2617.6,2617.3,0.1904]
[1750052393699,0.03812953,2617.5,2617.3,0.1904]
[1750052394342,0.51568248,2617.5,2617.1,0.1904]
[1750052394516,0.22852953,2617.5,2617.1,0.1904]
[1750052394837,0.03812953,2617.5,2616.2,10.0]
[1750052395039,1.0143,2617.4,2616.9,0.1904]
[1750052395216,0.03812953,2617.3,2616.9,0.1904]
[1750052395729,0.7655,2617.2,2616.0,4.64895864]
[1750052396061,0.7655,2616.8,2616.0,7.854]
[1750052396201,0.7655,2616.8,2615.7,4.64939633]
[1750052396202,2.68112953,2616.7,2615.7,4.64939633]
[1750052396397,2.68112953,2616.7,2615.8,7.854]
[1750052396830,2.68112953,2616.7,2615.6,3.82315192]
[1750052397048,2.68112953,2616.7,2615.4,0.99808224]
[1750052397234,1.17066295,2616.6,2615.6,3.82320397]
[1750052397436,0.03812953,2616.5,2615.7,11.67506658]
[1750052397637,0.03812953,2616.5,2615.8,3.82283927]
[1750052398010,0.86412953,2616.6,2616.0,3.82251292]
[1750052398235,0.86412953,2616.6,2616.0,3.86073323]
[1750052398547,0.86412953,2616.6,2616.0,7.852]
[1750052398745,0.86412953,2616.6,2616.0,7.990074]
[1750052401413,0.86412953,2616.6,2616.0,0.138074]
[1750052403247,2.644,2616.5,2616.0,0.138074]
[1750052403442,0.03812953,2616.4,2616.0,0.138074]
[1750052404323,0.38894248,2616.4,2616.0,0.138074]
[1750052405259,0.765,2616.3,2616.0,0.138074]
[1750052405481,1.315,2616.1,2616.0,0.138074]
[1750052405818,1.315,2616.1,2616.0,0.11554142]
[1750052406037,11.315,2616.1,2616.0,0.11554142]
[1750052406279,13.19115815,2616.1,2616.0,0.11554142]
[1750052407362,3.409,2616.1,2616.0,0.11554142]
[1750052408659,3.959,2616.1,2616.0,0.11554142]
[1750052408864,3.959,2616.1,2614.8,2.43507241]
[1750052408865,0.7682,2615.9,2614.8,2.43507241]
[1750052409167,0.7682,2615.3,2614.8,2.43507241]
[1750052409334,0.7682,2615.0,2614.8,2.43507241]
[1750052409671,0.58812953,2614.9,2614.8,2.43507241]
[1750052409964,3.81776248,2614.9,2614.8,2.43507241]
[1750052410134,2.68212953,2614.9,2614.8,2.43507241]
[1750052411870,2.68312953,2614.9,2614.8,2.43507241]
[1750052412674,13.23312953,2614.9,2614.8,2.43507241]
[1750052412875,13.9753,2614.9,2614.8,2.43507241]
[1750052414592,0.55,2614.4,2613.8,0.2176418]
[1750052414763,0.81842953,2614.3,2613.8,0.2176418]
[1750052414935,1.13684295,2614.2,2613.8,0.2176418]
[1750052415137,2.68312953,2614.1,2613.8,0.2176418]
[1750052416478,2.613,2614.0,2613.8,0.2176418]
[1750052416648,0.7803,2614.3,2613.8,0.2176418]
[1750052416649,0.81842953,2614.3,2613.8,0.2176418]
[1750052416977,2.65112953,2614.2,2613.8,0.2176418]
[1750052418336,2.99427248,2614.2,2613.8,0.2176418]
[1750052418881,0.1912,2613.9,2613.8,0.2176418]
[1750052419740,0.5503948,2613.9,2613.8,0.2176418]
[1750052419949,1.506,2613.9,2613.8,0.2176418]
[1750052420148,1.506,2613.9,2611.7,0.38784335]
[1750052420149,0.7488,2613.5,2611.8,4.58964456]
[1750052420386,0.7488,2613.5,2612.0,3.82848392]
[1750052420387,10.0,2613.3,2612.0,3.82848392]
[1750052420585,0.7488,2613.5,2612.1,3.86651152]
[1750052420586,0.39744653,2613.2,2612.1,3.86651152]
[1750052420760,0.03812953,2613.2,2612.2,0.7526]
[1750052420964,0.03812953,2613.2,2612.3,3.86631744]
[1750052421160,0.03812953,2613.2,2612.4,4.8368806]
[1750052421361,0.03812953,2613.4,2612.7,3.8273341]
[1750052421563,2.614,2613.6,2612.6,0.8297]
[1750052421765,0.03812953,2613.5,2612.6,0.8297]
[1750052422693,0.03812953,2613.5,2612.7,3.82736951]
[1750052422875,0.03812953,2613.7,2612.8,0.50397774]
[1750052423056,2.65212953,2613.8,2612.9,0.8297]
[1750052423253,2.65212953,2613.8,2613.3,3.82649172]
[1750052423454,2.614,2613.8,2613.5,3.82628658]
[1750052423788,2.614,2613.8,2613.5,4.67826285]
[1750052423950,2.614,2613.8,2613.5,0.85206591]
[1750052424150,2.614,2613.8,2613.5,4.67831102]
[1750052424652,0.8135,2614.7,2613.6,0.82295823]
[1750052424977,0.8135,2614.7,2613.9,3.82560808]
[1750052425149,0.8135,2614.7,2614.0,3.82552484]
[1750052425349,2.615,2614.9,2614.1,3.86361879]
[1750052425699,2.615,2614.9,2614.2,0.7847]
[1750052425878,10.03812953,2614.8,2613.8,0.7847]
[1750052426052,0.8135,2614.6,2613.4,0.7847]
[1750052426405,0.55,2614.4,2613.1,0.7847]
[1750052426553,0.55,2614.2,2613.1,0.7847]